Cogmind - Beta 16 @@@ ROGUE MODE // 2025.10.26 @ 15:03:54 Player: KeKe Result: Destroyed by RL-JS8(R) with Subdweller Laser Performance ------------- Evolutions (0) 0 Regions Visited (2) 400 Robots Destroyed (5) 25 Value Destroyed (151) 151 Prototype IDs (0) 0 Alien Tech Used (0) 0 Bonus (0) 0 TOTAL SCORE: 576 Bonus ------- None Cogmind --------- Core Integrity 0/250 Matter 300/300 Energy 78/100 System Corruption 0% Temperature Cool (6) Movement Flying (32) Location -10/Subcaves Parts ------- > --- POWER (1) -------- (None) > --- PROPULSION (2) --- VTOL Module VTOL Module > --- UTILITY (2) ------ Small Storage Unit Structural Scanner > --- WEAPON (2) ------- Light Assault Rifle > --- INVENTORY (8) ---- Light Ion Engine VTOL Module VTOL Module VTOL Module Large Storage Unit Light Assault Rifle Mining Laser Peak State ------------ > --- POWER ------------ (None) > --- PROPULSION ------- VTOL Module VTOL Module > --- UTILITY ---------- Small Storage Unit Seismic Detector > --- WEAPON ----------- Light Assault Rifle Light Assault Rifle > --- INVENTORY -------- Light Ion Engine VTOL Module VTOL Module VTOL Module VTOL Module VTOL Module VTOL Module Light Assault Rifle [Rating: 9] Favorites ----------- Power Light Ion Engine Engine Light Ion Engine Propulsion VTOL Module Leg Aluminum Leg Flight Unit VTOL Module Utility Small Storage Unit Device Seismic Detector Storage Small Storage Unit Weapon Light Assault Rifle Ballistic Gun Light Assault Rifle Special Weapon Mining Laser Build | -11 -10 -10 ------- Run | Yrd Mat Sub Slots Evolved . | . . . Power . | . . . Propulsion . | . . . Utility . | . . . Weapon . | . . . Parts Attached 10 | . 8 2 Power . | . . . Engine . | . . . Core . | . . . Reactor . | . . . Propulsion 4 | . 3 1 Treads . | . . . Leg . | . . . Wheel . | . . . Hover . | . . . Flight 4 | . 3 1 Utility 4 | . 4 . Device 2 | . 2 . Storage 2 | . 2 . Processor . | . . . Hackware . | . . . Protection . | . . . Artifact . | . . . Weapon 2 | . 1 1 Energy Gun . | . . . Energy Cannon . | . . . Ballistic Gun 1 | . . 1 Ballistic Cannon . | . . . Launcher . | . . . Special Weapon 1 | . 1 . Impact Weapon . | . . . Slashing Weapon . | . . . Piercing Weapon . | . . . Special Melee Weapon . | . . . Unidentified Prototypes . | . . . Parts Lost 3 | . 1 2 Power . | . . . Propulsion 1 | . . 1 Utility 1 | . 1 . Weapon 1 | . . 1 Highest Loss Streak 2 | . 1 2 To Critical Strikes . | . . . Average Backups 7 | . 7 7 Power 1 | . 1 1 Propulsion 4 | . 4 3 Utility . | . . 1 Weapon 1 | . 1 2 Tool/Special . | . . . Unused Backups 5 | . 2 3 Power . | . . . Propulsion 5 | . 2 3 Utility . | . . . Weapon . | . . . Tool/Special . | . . . Average Slot Usage (%) 82 | . 82 85 Engine 3 | . 3 . Leg 5 | . 7 . Flight 22 | . 20 28 Device 9 | . 7 14 Storage 14 | . 14 14 Ballistic Gun 26 | . 27 24 Special Weapon 1 | . . 3 Peak Build Rating 9 | . 9 9 Average Rating 8 | . 7 8 On Entrance 7 | 6 6 9 Avg Prop Armor Cover (%) . | . . . Naked Turns . | . . . Heaviest Build 10 | 10 10 8 Greatest Support 20 | 20 20 8 Greatest Overweight (x) 3 | . 3 . Average Overweight (x) . | . . . Largest Inventory Capacity 15 | . 15 8 Average Capacity 8 | . 8 8 Most Carried 9 | . 9 8 Average Carried 7 | . 7 7 Final Capacity 8 | 8 8 8 Final Carried 8 | 6 8 7 Class Distribution -------------------- 83% | Sprinter 16% | Mutant Dominant Class ---------------- Sprinter | -10/Materials Sprinter | -10/Subcaves Resources | -11 -10 -10 ----------- Run | Yrd Mat Sub Matter Collected 363 | 200 109 54 Remotely . | . . . Salvage Created 212 | . 212 . Parts 10 | . 10 . Haulers Intercepted 1 | . 1 . Recyclers Shooed . | . . . Parts Field Recycled . | . . . Retrieved Matter . | . . . Parts Self-Destructed 7 | . . 7 Prevented . | . . . Parts Restored . | . . . Kills | -11 -10 -10 ------- Run | Yrd Mat Sub Combat Hostiles Destroyed 4 | . 4 . Guns 4 | . 4 . Classes Destroyed 2 | . 2 . Hauler 1 | . 1 . Grunt 4 | . 4 . Best Kill Streak 2 | . 2 . Combat Bots Only 2 | . 2 . Max Kills in Single Turn 1 | . 1 . Gunslinging . | . . . Exploded . | . . . Melee . | . . . Uniques/NPCs Destroyed . | . . . Combat | -11 -10 -10 -------- Run | Yrd Mat Sub Hostile Shots Fired 47 | . 22 25 Missed 14 | . 5 9 Hits 33 | . 17 16 Projectile 33 | . 17 16 AOE 1 | . . 1 Critical Strikes 1 | . 1 . Damage Taken 610 | . 227 383 Core 258 | . 119 139 Absorbed by Shields . | . . . Core Remaining (%) 100 | 100 . . Volleys Fired 35 | . 28 7 Largest 2 | . 2 2 Hottest 100 | . 100 40 Shots Fired 69 | . 55 14 Gun 68 | . 54 14 Cannon . | . . . Launcher . | . . . Special 1 | . 1 . Kinetic 68 | . 54 14 Thermal 1 | . 1 . Explosive . | . . . Electromagnetic . | . . . Robot Hit Streak 10 | . 8 10 Robot Miss Streak 2 | . 2 1 Penetration Max . | . . . Secondary Targets 1 | . 1 . Max Gunslinging Chain 1 | . 1 . Shots Hit Robots 52 | . 39 13 Core Hits 14 | . 12 2 Critical Kills . | . . . Critical Parts Destroyed . | . . . Critical Strikes . | . . . Melee Attacks . | . . . Impact . | . . . Slashing . | . . . Piercing . | . . . Sneak Attacks . | . . . Combat Hostiles . | . . . Follow-up Attacks . | . . . Damage Inflicted 434 | . 333 101 Guns 434 | . 333 101 Cannons . | . . . Explosions . | . . . Melee . | . . . Ramming . | . . . Kinetic 434 | . 333 101 Thermal . | . . . Explosive . | . . . Electromagnetic . | . . . Impact . | . . . Slashing . | . . . Piercing . | . . . Highest Corruption . | . . . Average Corruption . | . . . Corruption Purged . | . . . Corruption Blocked . | . . . Overload Shots . | . . . Overflow Damage . | . . . Projectiles . | . . . Explosions . | . . . Melee . | . . . Knockbacks . | . . . Impact . | . . . Kinetic . | . . . Secondary . | . . . Self-Inflicted Damage . | . . . Shots . | . . . Rammed . | . . . Targets Rammed . | . . . Kicked . | . . . Crushed . | . . . Highest Temperature 24 | . 24 . Average Temperature 5 | . 5 . Received Heat Transfer 204 | . 144 60 Siege Activations . | . . . Martial Activations . | . . . Shielding Activations . | . . . Robots Disrupted . | . . . Combat Hostiles . | . . . Robots Corrupted . | . . . Combat Hostiles . | . . . Parts Fried . | . . . Impact Corruptions . | . . . Robots Melted . | . . . Combat Hostiles . | . . . Parts Melted . | . . . Heat Transferred . | . . . Parts Sabotaged . | . . . Parts Stolen . | . . . Parts Stripped . | . . . Power Chain Reactions . | . . . Alert | -11 -10 -10 ------- Run | Yrd Mat Sub Maximum Alert Level . | . . . Low Security (%) 100 | . 100 . Level 1 . | . . . Level 2 . | . . . Level 3 . | . . . Level 4 . | . . . Level 5 . | . . . High Security . | . . . Max Security . | . . . Peak Influence 40 | . 40 . Initial . | . . . Average 9 | . 9 . Influence Increases 108 | . 108 . Destroy 0b10 Robot/C 80 | . 80 . Destroy 0b10 Robot/NC 5 | . 5 . Destroy Leader 22 | . 22 . Destroy Structure 1 | . 1 . Influence Decreases 108 | . 87 21 Entered New Map 11 | . . 11 Time Decay 87 | . 77 10 Lost Part 10 | . 10 . Squads Dispatched 2 | . 2 . Investigation . | . . . Extermination . | . . . Reinforcement 2 | . 2 . Assault . | . . . Garrison . | . . . Intercept . | . . . Searches Triggered . | . . . Construction Impeded . | . . . Haulers Reinforced . | . . . Active Scanning Responses . | . . . Cargo Convoy Interrupts . | . . . Stealth | -11 -10 -10 --------- Run | Yrd Mat Sub Distress Signals 1 | . 1 . Communications Jammed . | . . . Distress Signals . | . . . Times Spotted 15 | . 8 7 Peak Tracking Total 7 | . 3 7 Tactical Retreats . | . . . Traps | -11 -10 -10 ------- Run | Yrd Mat Sub Traps Triggered . | . . . Indirectly . | . . . Trap Hack Attempts . | . . . Triggered . | . . . Disarmed . | . . . Reprogrammed . | . . . Reused . | . . . Traps Extracted . | . . . Installed . | . . . Triggered . | . . . Machines | -11 -10 -10 ---------- Run | Yrd Mat Sub Machines Disabled . | . . . Max in Single Turn . | . . . Machines Repaired . | . . . Machines Dismantled . | . . . Machines Sabotaged . | . . . Overloaded Fab Kills . | . . . Hacking | -11 -10 -10 --------- Run | Yrd Mat Sub Machines Accessed . | . . . Terminals . | . . . Fabricators . | . . . Repair Stations . | . . . Recycling Units . | . . . Scanalyzers . | . . . Garrison Access . | . . . Total Hacks . | . . . Successful . | . . . Failed . | . . . Catastrophic . | . . . Database Lockouts . | . . . Manual . | . . . Terminals . | . . . Fabricators . | . . . Repair Stations . | . . . Recycling Units . | . . . Scanalyzers . | . . . Garrison Access . | . . . Terminal Hacks . | . . . Fabricator Hacks . | . . . Repair Station Hacks . | . . . Recycling Unit Hacks . | . . . Scanalyzer . | . . . Garrison Access Hacks . | . . . Unauthorized Hacks . | . . . Terminals . | . . . Fabricators . | . . . Repair Stations . | . . . Recycling Units . | . . . Scanalyzers . | . . . Garrison Access . | . . . Data Cores Recovered . | . . . Used . | . . . Hacking Detections . | . . . Full Trace Events . | . . . Feedback Events . | . . . Feedback Blocked . | . . . Robot Schematics Acquired . | . . . Robots Built . | . . . Authchips . | . . . Time . | . . . Total Robot Build Rating . | . . . Part Schematics Acquired . | . . . Parts Built . | . . . Authchips . | . . . Time . | . . . Total Part Build Rating . | . . . Part Studies Acquired . | . . . Parts Repaired . | . . . Time . | . . . Parts Recycled . | . . . Recycled Matter . | . . . Retrieved Matter . | . . . Retrieved Components . | . . . Parts Scanalyzed . | . . . Part Schematics Acquired . | . . . Parts Damaged . | . . . Bothacking | -11 -10 -10 ------------ Run | Yrd Mat Sub Used RIF Installer . | . . . Robots Hacked . | . . . Non-combat . | . . . Combat . | . . . Robot Hacks Applied . | . . . Relay Couplers Released . | . . . Fabnet Peak Effective % . | . . . Robots Rewired . | . . . Allies Hacked . | . . . Hacks Repelled . | . . . Allies | -11 -10 -10 -------- Run | Yrd Mat Sub Total Allies . | . . . Largest Group . | . . . Highest-Rated Group . | . . . Highest-Rated Ally . | . . . Total Orders . | . . . Ally Attacks . | . . . Total Damage . | . . . Kills . | . . . Allies Corrupted . | . . . Allies Melted . | . . . Intel | -11 -10 -10 ------- Run | Yrd Mat Sub Active Infowar (turns) 250 | . 173 77 Structural 86 | . 9 77 Seismic 164 | . 164 . Robot Analysis Total . | . . . Derelict Logs Recovered 1 | . . 1 Drone Launches . | . . . Drone Recoveries . | . . . Exploration | -11 -10 -10 ------------- Run | Yrd Mat Sub Turns Passed 386 | . 309 77 Spaces Moved 569 | 1 413 155 Core 2 | . 2 . Treads . | . . . Legs 51 | 1 50 . Wheels . | . . . Hover . | . . . Flight 516 | . 361 155 Fastest Speed 32 | 120 32 32 Average Speed 40 | 120 44 32 Slowest Speed 200 | 120 200 32 Overloaded Moves . | . . . Propulsion Burnouts . | . . . Robots Hopped 3 | . 2 1 Potential Cave-ins . | . . . Cave-ins Triggered . | . . . Exploration Rate (%) 26 | 2 63 14 Regions Visited 2 Branch Regions 1 Pre-discovered Areas 1 | . . 1 Known Exits Taken . | . . . Unknown Exits Taken 2 | 1 1 . Scrap Searched 8 | . . 8 Spaces Dug 1 | . 1 . Terrain Destroyed 1 | . 1 . Melee . | . . . Projectile 1 | . 1 . AOE . | . . . Terrain Rammed . | . . . Walls Destroyed . | . . . Machines Disabled . | . . . Actions | -11 -10 -10 --------- Run | Yrd Mat Sub Total 662 | . 493 169 Wait 33 | . 27 6 Move 561 | . 408 153 Hop 3 | . 2 1 Pick Up 10 | . 10 . Fast Attach 3 | . 3 . Attach 2 | . 1 1 Detach . | . . . Swap 5 | . 4 1 Drop 10 | . 10 . Fire 35 | . 28 7 Melee . | . . . Ram . | . . . Kick . | . . . Crush . | . . . Escape Stasis . | . . . Rewire . | . . . Trap . | . . . Miscellaneous . | . . . Route ------- -11/Scrapyard -10/Materials (discovered 5 exits: [*Mat x2] / [*Min x2] / [*Sub]) -10/Subcaves History --------- Turn | Location | Event 1 | -11/Scrapyard | Discovered new exit (range 0) 1 | -11/Scrapyard | Entered Materials 121 | -10/Materials | Discovered new exit (range 16) 173 | -10/Materials | Discovered new exit (range 13) 180 | -10/Materials | Discovered new exit (range 15) 291 | -10/Materials | Discovered new exit (range 14) 302 | -10/Materials | Discovered new exit (range 9) 310 | -10/Materials | Entered Subcaves 311 | -10/Subcaves | Approached by a straggling Scientist 330 | -10/Subcaves | Core integrity fell below 50% 341 | -10/Subcaves | Core integrity fell below 20% 360 | -10/Subcaves | Build established: Sprinter 364 | -10/Subcaves | Disturbed a concealed Subdweller 368 | -10/Subcaves | Disturbed a concealed Subdweller 384 | -10/Subcaves | Ambushed by Subdwellers from Twisted Machinery 385 | -10/Subcaves | Ambushed by Subdweller buried in earth 387 | -10/Subcaves | Destroyed by RL-JS8(R) with Subdweller Laser Last Messages --------------- 00365_ Found 47 Matter. 00365_ Searching scrap... 00365_ Found Battle Cannon. 00365_ Found 57 Matter. 00366_ Searching scrap... 00366_ Found Battle Rifle. 00366_ Found 49 Matter. 00366_ Searching scrap... 00366_ Found Scrap Shield. 00366_ Found 54 Matter. 00366_ Searching scrap... 00366_ Found Sub. Shrapnel Launcher. 00366_ Found 66 Matter. 00367_ VTOL Module destroyed. 00368_ O8-Y7E(R) angrily emerges from the Twisted Machinery. 00368_ Acquired 10 matter. 00368_ Subatomizers dissect the Riot Gun. 00384_ RL-JS8(R) emerges from the Twisted Machinery. 00385_ Lgt. Assault Rifle destroyed. 00386_ ZM-1BY(R): "ARGHSUB!" Map ----- +----------------------------------------------------+ | ?????????????????????????????????????????????????? | | ?????????????????????????????????????????????????? | | ?????????????????????????????????????????????????? | | ?????????????????????????????????????????????????? | | ?????????????????????????????????????????????????? | | ?????????????????????????????????????????????????? | | ?????????????????????????????????????????????????? | | ?????????????????????????????????????????????????? | | ?????????????????????????????????????????????????? | | ?????????????????????????????????????????????????? | | ?????????????????????????????????????????????????? | | ?????????????????????????????????????????????????? | | ?????????????????????????????????????????????????? | | ?????????????????????????????????????????????????? | | ???????????????????????????????????###???????????? | | ??????????????????????????????????### ???????????? | | ???????????????## ?????????????# ### ???????????? | | ???????????????## ?????????? ### ????????????? | | ??????????????### ## ##?????? # ????????????? | | ??????????????#### ######????? " ?????????????? | | ??????????????## ##????? " ##???????????? | | ??????????????# ###### "" ##???????????? | | ??????????????????? ###### " " ##???????????? | | ????????????????????? ### """ ##???????????? | | ?????????????????????## RR" ###???????????? | | ????????????????????###; @ ###???????????? | | ????????????????????###; ###??????????? | | ????????????????????##; ##"??????????? | | ????????????????????##; ;##??????????? | | ????????????????????###;;;R; ;###?????????? | | ????????????????????#### ;; ;###?????????? | | ?????????????????????######## ;# ""???????? | | ??????????????????????####### " "???????? | | ???????????????????????###### ;;;;; " ""?????? | | ???????????????????????## ## ## ##"""" ##?????? | | ???????????????????????## ####"" "?###?????? | | ??????????????????????### ###"?? ??????????? | | ??????????????????????### ###???????????????? | | ??????????????????????## ###???????????????? | | ??????????????????????## ###???????????????? | | ??????????????????????### ####??????????????? | | ??????????????????????### ###??????????????? | | ???????????????########## #####???????????? | | ???????????????######### ## ##???????????? | | ??????????????### #### ##???????????? | | ??????????????### #### ###???????????? | | ??????????????## # #####?? ####???????????? | | ??????????????### ### #####??#####????????????? | | ??????????????### ### ####??####?????????????? | | ???????????###### #### #####??????????????????? | +----------------------------------------------------+ Best States ------------- Heat Dissipation 25 Energy Generation 10 Energy Capacity 125 Matter Stores 300 Matter Capacity 300 Sight Range 16 Terrain Scan Density 10 Evasion (%) 63 Item Schematics ----------------- None Robot Schematics ------------------ None Fabricated ------------ Nothing Repaired ---------- Nothing Studied --------- None Alien Tech Used ----------------- None Achievements -------------- None Challenges ------------ None Game ------ Seed AmuletPlasmaPendant Manual? 0 Play Time 00:08:20 Cumulative 130.3 hours Start 2025.10.26 @ 14:57:27 End 2025.10.26 @ 15:03:54 Sessions 1 Manual Loads 0 Difficulty Rogue Special Mode None Game No. 133 Rogue 133 Adventurer 0 Explorer 0 Win Type - Total 1 Types 1/0/0/0/0/0/0/0/0/0 Lore% 61 Gallery% 51 Achievement% 35 Wizard Run 0 Options --------- Layout 0 ASCII 0 Keyboard 0 Movement Mouse Keybinds 0 Fullscreen 2 Font 18/X11 Map View 76x50 Zoom Use 3% Tactical HUD 1 Map Filters NONE Filters NONE Steam 1 RUN: b4579757-8169-4925-8f4c-ad7162a79a37